bitfinex/quotes_SOLUSD_20251216
["timestamp","ask_amount","ask_price","bid_price","bid_amount"]
[1765856235302,0.2,125.9,125.89,8.66344268]
[1765856236415,0.2,125.9,125.89,7.94344268]
[1765856237095,0.2,125.9,125.89,8.66344268]
[1765856238106,0.2,125.9,125.89,7.94344268]
[1765856238294,0.2,125.9,125.88,8.72]
[1765856238799,8.86291142,125.9,125.88,8.72]
[1765856238997,21.53021278,125.9,125.88,8.72]
[1765856239193,0.72,125.89,125.88,8.72]
[1765856239501,0.92,125.9,125.88,8.72]
[1765856239700,0.92,125.9,125.88,16.66405008]
[1765856240008,0.2,125.9,125.88,16.66405008]
[1765856240189,0.92,125.9,125.88,8.72]
[1765856241725,8.86284966,125.9,125.88,8.72]
[1765856242218,0.92,125.9,125.88,8.72]
[1765856243116,0.2,125.9,125.89,0.72]
[1765856243322,0.2,125.9,125.88,30.05116195]
[1765856243508,0.2,125.9,125.88,29.33116195]
[1765856243710,0.2,125.9,125.89,8.66344268]
[1765856243914,0.2,125.9,125.89,21.33074404]
[1765856244109,0.2,125.9,125.89,8.66344268]
[1765856244310,0.2,125.9,125.89,21.33074404]
[1765856244839,0.2,125.9,125.89,43.18778016]
[1765856248110,0.2,125.9,125.89,30.5204788]
[1765856248426,0.2,125.9,125.89,43.18778016]
[1765856248622,0.2,125.9,125.89,43.18936801]
[1765856248925,0.2,125.93,125.91,8.80994492]
[1765856249256,0.2,125.93,125.92,22.10888921]
[1765856249436,0.2,125.93,125.92,21.38888921]
[1765856250435,0.2,125.93,125.92,8.72]
[1765856250652,0.2,125.93,125.92,21.38888921]
[1765856251040,0.2,125.93,125.92,29.3304394]
[1765856251241,0.2,125.93,125.92,16.66155019]
[1765856251722,0.9,125.93,125.92,8.72]
[1765856251921,8.84091955,125.93,125.92,8.72]
[1765856252127,21.50980876,125.93,125.9,8.7]
[1765856252344,0.67,125.92,125.9,8.7]
[1765856252932,0.87,125.93,125.91,7.94218092]
[1765856253257,0.87,125.93,125.92,8.7]
[1765856256038,0.2,125.93,125.92,16.64155019]
[1765856256432,0.2,125.93,125.92,8.7]
[1765856256633,0.2,125.93,125.92,16.64155019]
[1765856256833,0.2,125.93,125.92,8.7]
[1765856258237,0.87,125.93,125.92,8.7]
[1765856260059,8.81091955,125.93,125.92,8.7]
[1765856261745,8.81091955,125.93,125.88,13.36888921]
[1765856261746,21.47980876,125.93,125.91,8.7]
[1765856261928,13.33888921,125.92,125.91,8.7]
[1765856262129,13.33888921,125.92,125.87,7.94453663]
[1765856262343,0.67,125.91,125.88,8.7]
[1765856263135,8.61233935,125.91,125.88,8.7]
[1765856263535,0.67,125.9,125.88,8.7]
[1765856263936,0.67,125.9,125.88,16.64401481]
[1765856265191,0.67,125.9,125.88,8.7]
[1765856267243,16.41415324,125.9,125.88,8.7]
[1765856267748,0.67,125.89,125.88,8.7]
[1765856269172,16.41465571,125.89,125.88,8.7]
[1765856269334,36.27326243,125.89,125.86,8.7]
[1765856269539,8.47121303,125.88,125.86,8.7]
[1765856269861,7.80121303,125.87,125.8,29.38197506]
[1765856270040,7.80121303,125.85,125.81,8.7]
[1765856270544,8.47121303,125.85,125.81,9.4]
[1765856270868,15.74704298,125.86,125.81,17.34787872]
[1765856271165,0.67,125.84,125.81,17.34787872]
[1765856271461,7.80121303,125.86,125.81,44.32032615]
[1765856271769,0.67,125.86,125.82,8.50121303]
[1765856272552,8.61422225,125.88,125.83,8.50121303]
[1765856272741,0.67,125.87,125.84,8.72]
[1765856272942,0.67,125.87,125.84,16.66644432]
[1765856273356,0.67,125.87,125.84,8.72]
[1765856273357,8.61512082,125.87,125.84,8.72]
[1765856273659,2.91563541,125.86,125.84,8.72]
[1765856273836,3.58563541,125.86,125.84,8.72]
[1765856274034,7.94512082,125.87,125.84,8.72]
[1765856274035,0.67,125.85,125.84,8.72]
[1765856275848,8.47790725,125.85,125.84,8.72]
[1765856276051,0.67,125.85,125.84,8.72]
[1765856277046,15.7526121,125.87,125.84,8.72]
[1765856277349,16.4226121,125.87,125.84,8.72]
[1765856277551,0.67,125.86,125.84,8.72]
[1765856278465,16.422142,125.88,125.84,16.66654784]
[1765856278639,0.67,125.87,125.84,78.56654784]
[1765856280059,8.61473705,125.87,125.84,78.56654784]
[1765856280263,16.4226443,125.87,125.84,78.56654784]
[1765856280567,8.47790725,125.87,125.84,78.56654784]
[1765856280776,0.67,125.86,125.84,70.62]
[1765856281741,7.80790725,125.85,125.78,0.1]
[1765856281938,15.75731261,125.8,125.78,0.1]
[1765856282142,7.80790725,125.79,125.78,0.1]
[1765856282444,8.52790725,125.79,125.78,0.1]
[1765856282664,8.52790725,125.79,125.74,8.72]
[1765856282862,0.72,125.78,125.75,7.95190232]
[1765856283958,7.80790725,125.8,125.75,7.95190232]
[1765856284164,0.72,125.8,125.76,8.49790725]
[1765856284365,0.72,125.8,125.77,8.72]
[1765856284891,8.6680824,125.82,125.77,16.52790725]
[1765856285059,8.6680824,125.82,125.78,0.69]
[1765856285977,7.9480824,125.82,125.77,8.72]
[1765856286153,0.72,125.81,125.78,7.95020598]
[1765856286352,0.72,125.82,125.78,16.44811323]
[1765856286969,8.52790725,125.86,125.8,7.80790725]
[1765856287177,0.72,125.86,125.82,7.80790725]
[1765856287474,0.72,125.86,125.83,7.80790725]
[1765856287769,8.66421263,125.88,125.84,8.72]
[1765856287943,0.72,125.88,125.84,17.21790725]
[1765856288151,0.72,125.88,125.85,15.75387467]
[1765856288348,0.72,125.88,125.84,9.41]
[1765856288349,8.66415807,125.88,125.84,25.16424555]
[1765856288565,0.72,125.88,125.84,25.16424555]
[1765856290456,0.72,125.88,125.85,15.75382855]
[1765856290668,8.66301721,125.9,125.86,7.80790725]
[1765856290865,8.66301721,125.9,125.87,8.72]
[1765856293183,0.72,125.9,125.87,25.16249397]
[1765856293556,8.66194736,125.92,125.88,0.69]
[1765856293761,8.14112091,125.93,125.88,8.49790725]
[1765856293974,0.72,125.92,125.89,7.80790725]
[1765856294172,0.72,125.92,125.88,8.63375515]
[1765856294173,0.72,125.92,125.9,8.72]
[1765856294859,8.52790725,125.92,125.9,8.72]
[1765856295066,7.80790725,125.91,125.88,8.72]
[1765856295270,7.80790725,125.9,125.88,8.72]
[1765856295468,7.80790725,125.89,125.82,8.49790725]
[1765856295680,0.72,125.88,125.83,8.72]
[1765856295862,8.52790725,125.88,125.83,17.21790725]
[1765856296062,16.47216377,125.88,125.84,7.94655311]
[1765856296358,0.72,125.87,125.84,7.94655311]
[1765856296565,0.72,125.87,125.83,16.66699029]
[1765856296794,7.80790725,125.86,125.83,16.66699029]
[1765856296960,7.80790725,125.85,125.83,8.72]
[1765856297583,0.72,125.84,125.83,8.72]
[1765856299098,29.51993977,125.87,125.83,16.6671816]
[1765856299334,0.72,125.86,125.83,8.72]
[1765856299585,8.52790725,125.86,125.83,8.72]
[1765856299987,0.72,125.85,125.83,8.72]
[1765856302774,19.8601843,125.88,125.84,0.69]
[1765856302775,7.94461258,125.88,125.84,0.69]
[1765856303114,8.66461258,125.88,125.84,0.69]
[1765856303908,0.72,125.87,125.84,8.63625935]
[1765856304205,7.80790725,125.86,125.83,8.72]
[1765856304591,8.52790725,125.86,125.83,8.72]
[1765856304908,8.52790725,125.88,125.84,8.63648834]
[1765856305111,20.85499845,125.89,125.83,8.72]
[1765856305418,7.80790725,125.86,125.83,8.72]
[1765856305782,16.47331252,125.86,125.83,8.72]
[1765856305984,8.66540527,125.86,125.83,16.66722226]
[1765856306301,0.72,125.86,125.83,16.66722226]
[1765856306487,8.66534338,125.86,125.83,8.72]
[1765856306682,0.72,125.86,125.83,16.66714913]
[1765856306889,8.66506942,125.87,125.83,17.35714913]
[1765856307820,0.72,125.87,125.83,17.35714913]
[1765856308589,7.80790725,125.85,125.81,7.94809146]
[1765856308786,7.80790725,125.86,125.82,8.72]
[1765856309090,0.72,125.86,125.82,9.41]
[1765856309289,15.75279106,125.87,125.82,8.72]
[1765856309492,8.52790725,125.85,125.82,8.72]
[1765856310291,0.72,125.85,125.82,17.3578008]
[1765856310491,0.72,125.86,125.82,17.3578008]
[1765856310695,8.66497818,125.87,125.83,0.69]
[1765856310900,0.72,125.87,125.83,8.49790725]
[1765856311090,20.99140196,125.88,125.83,0.69]
[1765856311091,8.66431076,125.88,125.83,0.69]
[1765856311290,8.66431076,125.88,125.84,0.69]
[1765856311485,8.66431076,125.88,125.85,8.72]
[1765856312793,0.72,125.88,125.85,16.66571432]
[1765856313294,0.65,125.87,125.85,61.9]
[1765856313504,7.80790725,125.86,125.85,61.9]
[1765856313811,8.45790725,125.87,125.85,61.9]
[1765856314110,0.65,125.86,125.85,61.9]
[1765856314330,0.65,125.86,125.84,8.72]
[1765856314926,15.75339737,125.87,125.84,8.72]
[1765856315092,16.40339737,125.87,125.84,8.72]
[1765856315598,0.65,125.86,125.84,8.72]
[1765856316306,16.40359345,125.86,125.84,8.72]
[1765856317435,0.65,125.88,125.84,9.44]
[1765856317597,8.45815845,125.88,125.84,9.44]
[1765856318087,0.65,125.88,125.84,9.44]
[1765856318292,0.65,125.9,125.85,0.72]
[1765856318532,0.65,125.9,125.85,8.52815845]
[1765856318831,16.40033937,125.91,125.85,8.52815845]
[1765856318987,16.40033937,125.91,125.86,0.72]
[1765856319188,16.40033937,125.91,125.87,8.72]
[1765856319493,0.65,125.9,125.87,8.72]
[1765856319710,16.40033937,125.91,125.87,17.384615]
[1765856320401,0.65,125.9,125.87,8.72]
[1765856320600,8.45815845,125.9,125.87,8.72]
[1765856321308,0.65,125.9,125.87,8.72]
[1765856321510,16.4010709,125.9,125.87,8.72]
[1765856323126,8.59291245,125.9,125.87,16.66461223]
[1765856323425,0.65,125.89,125.87,8.72]
[1765856324831,19.85619859,125.91,125.87,17.38430773]
[1765856324832,16.40037577,125.91,125.87,17.38430773]
[1765856325526,21.27085666,125.91,125.87,17.38430773]
[1765856326104,0.65,125.9,125.87,9.44]
[1765856328234,13.32863934,125.9,125.87,9.44]
[1765856328600,21.27170225,125.9,125.87,9.44]
[1765856328804,7.94306291,125.9,125.87,9.44]
[1765856329033,21.27170225,125.9,125.87,9.44]
[1765856329205,0.65,125.89,125.87,8.72]
[1765856329629,13.32863934,125.89,125.87,8.72]
[1765856330137,21.27226723,125.89,125.87,8.72]
[1765856331539,13.32863934,125.88,125.87,8.72]
[1765856332334,21.27271306,125.88,125.87,8.72]
[1765856332714,13.32863934,125.88,125.87,8.72]
[1765856333545,0.65,125.88,125.87,8.72]
[1765856334435,21.27170835,125.9,125.87,8.72]
[1765856335223,7.94229637,125.91,125.87,17.38469743]
[1765856335420,21.27093571,125.91,125.87,17.38469743]
[1765856335734,20.62093571,125.91,125.87,17.38469743]
[1765856335933,0.65,125.9,125.87,17.38469743]
[1765856336618,8.59300906,125.9,125.87,17.38469743]
[1765856337347,8.59300906,125.9,125.87,9.44]
[1765856337640,21.2716484,125.9,125.87,9.44]
[1765856337950,0.65,125.89,125.87,8.72]
[1765856338115,0.65,125.89,125.84,8.72]
[1765856338320,12.67863934,125.86,125.84,9.44]
[1765856338520,12.67863934,125.87,125.84,8.72]
[1765856338731,7.94533608,125.86,125.84,8.72]
[1765856339948,21.27358021,125.87,125.84,8.72]
[1765856340854,12.67863934,125.89,125.85,0.72]
[1765856341215,13.32863934,125.89,125.85,0.72]
[1765856341720,13.32863934,125.88,125.84,16.66659575]
[1765856341950,13.0470912,125.85,125.79,0.72]
[1765856342249,12.67863934,125.84,125.8,16.66862964]
[1765856342427,13.33863934,125.84,125.8,16.66862964]
[1765856342757,13.33863934,125.83,125.8,8.72]
[1765856342954,13.33863934,125.83,125.8,16.66896718]
[1765856343263,0.66,125.83,125.8,16.66896718]
[1765856343556,12.67863934,125.84,125.8,16.66896718]
[1765856343713,0.66,125.84,125.8,17.33896718]
[1765856343917,13.33863934,125.84,125.8,17.33896718]
[1765856344560,20.99316196,125.85,125.8,17.33896718]
[1765856344561,12.67863934,125.85,125.81,0.67]
[1765856344776,0.66,125.86,125.81,13.34863934]
[1765856344951,0.66,125.86,125.82,0.67]
[1765856345140,0.66,125.86,125.83,8.72]
[1765856345744,0.66,125.86,125.83,9.39]
[1765856345940,7.94414236,125.88,125.84,0.67]
[1765856346264,12.67863934,125.88,125.84,0.67]
[1765856346585,13.33863934,125.88,125.84,0.67]
[1765856347239,21.28296253,125.88,125.84,8.61655611]
[1765856347734,0.66,125.88,125.84,8.61655611]
[1765856347933,0.66,125.88,125.85,0.67]
[1765856348180,21.28282953,125.88,125.86,8.72]
[1765856349396,0.66,125.87,125.86,8.72]
[1765856349555,13.33863934,125.87,125.83,7.94699826]
[1765856349748,13.33863934,125.86,125.84,8.72]
[1765856351276,13.33863934,125.85,125.84,8.72]
[1765856351852,13.33863934,125.85,125.81,8.72]
[1765856352175,12.67863934,125.83,125.81,8.72]
[1765856352370,0.66,125.84,125.81,8.72]
[1765856352554,13.33863934,125.83,125.81,8.72]
[1765856353455,8.60738824,125.83,125.81,8.72]
[1765856353650,7.94618057,125.85,125.81,16.66829079]
[1765856353871,21.28481991,125.85,125.82,0.67]
[1765856354560,21.28481991,125.85,125.81,16.66829079]
[1765856354755,21.28481991,125.85,125.81,17.33829079]
[1765856355080,8.60618057,125.85,125.81,17.33829079]
[1765856355467,21.28481991,125.85,125.81,17.33829079]
[1765856357485,8.60618057,125.85,125.81,17.33829079]
[1765856357781,8.60618057,125.85,125.81,16.66829079]
[1765856357961,8.60618057,125.85,125.81,17.33829079]
[1765856358162,8.60618057,125.85,125.82,0.67]
[1765856358361,7.94618057,125.85,125.82,8.61776906]
[1765856359773,7.94559927,125.86,125.83,0.67]
[1765856360092,12.67863934,125.84,125.77,83.75703612]
[1765856360262,12.67863934,125.78,125.76,8.72]
[1765856360460,13.33863934,125.78,125.76,8.72]
[1765856360804,12.67863934,125.77,125.76,8.72]
[1765856360959,13.33863934,125.78,125.76,8.72]
[1765856361578,12.67863934,125.78,125.76,8.72]
[1765856361786,21.28853606,125.79,125.76,8.72]
[1765856362783,20.62785407,125.8,125.76,17.34138526]
[1765856362986,21.28785407,125.8,125.76,17.34138526]
[1765856363522,20.62785407,125.8,125.76,17.34138526]
[1765856363675,0.66,125.79,125.76,17.34138526]
[1765856364091,21.28720399,125.81,125.77,0.67]
[1765856364281,20.62669124,125.82,125.77,13.34863934]
[1765856364801,21.28669124,125.82,125.78,0.67]
[1765856365003,21.28669124,125.82,125.79,8.72]
[1765856368899,8.6080519,125.82,125.79,8.72]
[1765856369105,21.28669124,125.82,125.79,8.72]
[1765856369316,8.6080519,125.82,125.79,8.72]
[1765856369613,21.28669124,125.82,125.79,8.72]
[1765856370016,20.62669124,125.82,125.79,8.72]
[1765856370187,21.28669124,125.82,125.79,8.72]
[1765856371022,13.33863934,125.81,125.79,8.72]
[1765856371191,21.28752138,125.81,125.79,8.72]
[1765856371393,13.33863934,125.8,125.79,8.72]
[1765856371915,0.66,125.8,125.79,8.72]
[1765856372599,19.86878356,125.83,125.79,8.72]
[1765856372600,7.94788487,125.82,125.79,8.72]
[1765856372806,0.72,125.82,125.79,9.39]
[1765856372994,8.66802496,125.82,125.79,17.33973491]
[1765856373190,8.66802496,125.82,125.79,9.39]
[1765856373396,8.66802496,125.82,125.79,17.33970989]
[1765856373614,20.62600042,125.83,125.79,9.39]
[1765856373913,8.66736108,125.83,125.79,9.39]
[1765856374610,20.6254293,125.84,125.8,0.67]
[1765856374818,21.3454293,125.84,125.8,0.67]
[1765856375003,8.66678996,125.84,125.8,8.61874008]
[1765856375593,8.66678996,125.84,125.8,21.29737942]
[1765856376791,8.66678996,125.84,125.81,0.67]
[1765856376991,8.66678996,125.84,125.82,8.72]
[1765856377703,19.8607016,125.88,125.83,0.67]
[1765856377903,19.8607016,125.88,125.82,21.39863934]
[1765856377904,21.34334419,125.87,125.82,21.39863934]
[1765856378218,21.34334419,125.87,125.82,9.39]
[1765856378424,0.72,125.86,125.82,9.39]
[1765856378829,21.3445563,125.86,125.82,17.33769144]
[1765856379528,8.66591696,125.86,125.82,17.33769144]
[1765856380813,0.72,125.86,125.82,17.33769144]
[1765856381015,7.94499056,125.87,125.83,0.67]
[1765856381322,8.66499056,125.87,125.83,0.67]
[1765856381830,0.72,125.87,125.83,13.35794476]
[1765856382329,0.72,125.87,125.84,0.67]
[1765856382532,0.72,125.87,125.85,8.72]
[1765856382931,33.67866321,125.89,125.85,16.66575168]
[1765856383129,0.72,125.88,125.85,16.66575168]
[1765856383325,0.72,125.88,125.85,17.33575168]
[1765856384610,13.40794476,125.88,125.85,8.72]
[1765856385099,0.72,125.89,125.86,0.67]
[1765856385300,0.72,125.89,125.85,30.02366559]
[1765856385609,0.72,125.89,125.85,16.66572083]
[1765856385930,0.72,125.89,125.85,17.33572083]
[1765856386230,8.66352743,125.89,125.85,17.33572083]
[1765856388231,8.66352743,125.89,125.86,0.67]
[1765856388433,0.72,125.89,125.86,8.61520789]
[1765856388737,0.72,125.89,125.86,7.94520789]
[1765856390308,8.66349332,125.89,125.86,7.94520789]
[1765856391933,8.66349332,125.89,125.86,8.61520789]
[1765856393740,8.66349332,125.89,125.86,0.67]
[1765856394032,11.57692146,125.89,125.86,0.67]
[1765856396040,0.72,125.89,125.86,8.61523926]
[1765856396340,24.62350482,125.9,125.86,8.61523926]
[1765856396915,0.72,125.89,125.86,8.61523926]
[1765856398045,0.72,125.89,125.86,70.51523926]
[1765856398518,0.72,125.89,125.86,69.84523926]
[1765856398840,2.91342814,125.88,125.86,61.9]
[1765856399048,0.72,125.87,125.86,61.9]
[1765856399241,0.72,125.88,125.86,61.9]
[1765856400728,7.94327417,125.9,125.87,0.67]
[1765856400938,11.57670231,125.9,125.88,8.72]
[1765856401321,0.72,125.9,125.88,8.72]
[1765856401523,10.85563702,125.91,125.88,8.72]
[1765856401729,0.72,125.9,125.88,8.72]
[1765856402526,0.72,125.9,125.88,16.66391322]
[1765856403524,0.72,125.9,125.88,8.72]
[1765856403733,3.63342814,125.9,125.88,8.72]
[1765856404655,0.72,125.9,125.88,8.72]
[1765856406359,0.72,125.9,125.88,16.66381887]
[1765856407362,0.72,125.9,125.88,8.72]
[1765856407758,7.94227588,125.91,125.89,0.66]
[1765856408057,11.56525651,125.92,125.89,0.66]
[1765856408229,11.56525651,125.92,125.9,8.72]
[1765856408435,0.2,125.93,125.9,8.72]
[1765856408635,0.2,125.93,125.91,0.66]
[1765856408853,0.2,125.93,125.92,8.72]
[1765856409251,0.2,125.93,125.92,9.38]
[1765856410680,0.2,125.93,125.92,17.32155019]
[1765856413758,0.2,125.93,125.92,20.23497833]
[1765856414141,0.2,125.93,125.92,82.13497833]
[1765856415462,0.2,125.93,125.92,90.94492325]
[1765856421352,1e-08,125.93,125.92,90.94492325]
[1765856421547,1e-08,125.94,125.93,0.66]
[1765856421748,1e-08,125.94,125.93,3.57342814]
[1765856422167,1e-08,125.94,125.93,65.47342814]
[1765856423979,1e-08,125.94,125.93,70.50091955]
[1765856424183,1e-08,125.94,125.93,86.46143889]
[1765856426579,0.71,126.0,125.96,13.0470912]
[1765856426785,0.71,126.0,125.97,8.7]
[1765856426972,0.71,126.0,125.97,9.36]
[1765856427566,0.91,126.01,125.98,3.57342814]
[1765856427766,0.2,126.01,125.99,8.7]
[1765856427987,0.2,126.01,125.99,70.6]
[1765856428167,0.2,126.01,125.99,74.17342814]
[1765856428568,0.2,126.01,126.0,7.93650793]
[1765856428869,0.2,126.01,126.0,73.40993607]
[1765856429104,0.2,126.01,126.0,72.74993607]
[1765856429406,0.2,126.01,126.0,69.83650793]
[1765856430073,0.2,126.01,126.0,72.74993607]
[1765856430272,0.2,126.01,126.0,73.40993607]
[1765856430675,0.2,126.01,126.0,72.74993607]
[1765856431972,0.2,126.01,126.0,69.83650793]
[1765856435290,0.86,126.01,126.0,69.83650793]
[1765856435492,0.86,126.01,126.0,78.53650793]
[1765856435493,0.2,126.01,126.0,78.53650793]
[1765856438078,0.86,126.01,125.98,0.72]
[1765856438292,11.70933281,126.01,125.98,0.72]
[1765856438483,0.66,126.0,125.99,8.7]
[1765856440791,0.2,126.01,125.99,16.63702677]
[1765856440977,0.2,126.01,125.99,17.35702677]
[1765856441177,0.2,126.01,125.99,7.36]
[1765856441178,3.57342814,126.0,125.99,7.36]
[1765856442480,11.04939325,126.01,125.99,7.36]
[1765856442794,11.61939325,126.01,125.99,7.36]
[1765856442980,8.70596511,126.01,125.99,7.36]
[1765856443180,13.8170912,126.01,125.99,7.36]
[1765856443896,16.73051934,126.01,125.99,7.36]
[1765856445207,16.16051934,126.01,125.99,7.36]
[1765856445409,9.66426728,126.0,125.96,8.7]
[1765856445611,4.54713364,125.98,125.96,8.7]
[1765856445903,5.11713364,125.99,125.96,8.7]
[1765856446108,5.11552847,125.99,125.96,8.7]
[1765856446314,0.57,125.98,125.96,8.7]
[1765856447217,7.93671962,126.0,125.96,17.35902554]
[1765856447514,0.57,125.99,125.96,16.63902554]
[1765856448961,26.29863004,126.01,125.97,0.72]
[1765856449214,13.2470912,126.01,125.97,0.72]
[1765856449417,13.8170912,126.01,125.97,0.72]
[1765856449785,0.2,126.01,125.97,5.26552847]
[1765856450118,0.2,126.01,125.98,4.54552847]
[1765856450317,0.2,126.01,125.99,8.7]
[1765856450502,0.2,126.01,125.99,9.42]
[1765856450690,0.2,126.01,126.0,0.72]
[1765856451788,0.2,126.01,126.0,13.2020364]
[1765856454887,0.2,126.01,126.0,22.01198132]
[1765856455302,0.2,126.01,126.0,83.91198132]
[1765856456899,0.2,126.02,126.0,121.34587083]
[1765856457217,0.2,126.03,126.02,17.59261967]
[1765856457408,0.2,126.03,126.02,26.29261967]
[1765856457592,0.2,126.03,126.02,27.01261967]
[1765856458116,0.2,126.03,126.02,26.24786804]
[1765856458317,0.2,126.03,126.02,43.75781296]
[1765856460535,0.2,126.03,126.02,30.40233957]
[1765856460720,0.2,126.03,126.02,16.63524837]
[1765856460911,0.2,126.03,126.02,17.35524837]
[1765856461231,0.2,126.03,126.02,21.90077684]
[1765856461604,0.2,126.03,126.02,30.71072176]
[1765856461808,0.2,126.03,126.02,43.75781296]
[1765856462115,0.2,126.03,126.02,105.65781296]
[1765856463020,0.2,126.04,126.02,105.65781296]
[1765856463021,0.2,126.04,126.03,8.80994492]
[1765856463227,0.2,126.04,126.03,14.05547339]
[1765856463925,0.2,126.04,126.03,21.99009213]
[1765856466325,0.2,126.06,126.05,13.0470912]
[1765856466530,0.2,126.06,126.05,26.29261967]
[1765856466830,0.2,126.06,126.05,26.99261967]
[1765856467401,0.2,126.06,126.05,34.92597944]
[1765856468029,0.2,126.06,126.05,43.73592436]
[1765856469524,0.2,126.1,126.05,68.11485227]
[1765856469725,0.2,126.1,126.09,4.54552847]
[1765856469916,0.2,126.1,126.09,13.24552847]
[1765856470120,0.2,126.1,126.09,13.94552847]
[1765856471506,0.2,126.1,126.09,21.87637151]
[1765856471703,0.2,126.1,126.09,17.33084304]
[1765856472337,0.2,126.1,126.09,16.63084304]
[1765856472543,0.77,126.1,126.09,8.7]
[1765856473037,0.77,126.1,126.09,16.63084304]
[1765856473241,0.2,126.1,126.09,16.63084304]
[1765856474325,0.77,126.1,126.09,8.7]
[1765856474744,0.77,126.1,126.09,16.63084304]
[1765856474910,0.2,126.1,126.09,16.63084304]
[1765856475941,0.2,126.1,126.09,17.33084304]
[1765856476141,0.2,126.1,126.09,16.63084304]
[1765856481140,0.2,126.1,126.09,83.77637151]
[1765856481447,0.2,126.1,126.09,78.53084304]
[1765856481626,0.2,126.1,126.09,79.23084304]
[1765856481825,0.2,126.1,126.09,83.77637151]
[1765856483028,0.2,126.1,126.09,92.58631643]
[1765856485780,0.2,126.1,126.09,78.53084304]
[1765856486072,0.2,126.1,126.09,30.68631643]
[1765856486635,0.2,126.1,126.09,17.33084304]
[1765856486946,0.2,126.1,126.09,16.63084304]
[1765856488430,0.2,126.1,126.09,21.87637151]
[1765856488630,0.2,126.1,126.09,16.63084304]
[1765856488825,0.2,126.1,126.09,17.33084304]
[1765856490030,0.2,126.1,126.09,79.23084304]
[1765856490459,0.2,126.1,126.09,83.77637151]
[1765856490937,0.2,126.1,126.09,92.58631643]
[1765856491424,0.2,126.11,126.09,92.58631643]
[1765856491626,0.2,126.11,126.1,0.7]
[1765856491838,0.2,126.11,126.1,14.05547339]
[1765856492026,0.2,126.11,126.1,21.9856875]
[1765856492331,0.2,126.14,126.1,96.9327787]
[1765856492531,0.2,126.14,126.13,13.35547339]
[1765856492727,0.2,126.14,126.13,97.00256459]
[1765856492957,0.2,126.14,126.13,97.71256459]
[1765856493127,0.2,126.16,126.15,21.85703612]
[1765856493332,0.2,126.16,126.15,35.10256459]
[1765856493532,0.2,126.2,126.15,35.81256459]
[1765856493750,0.2,126.2,126.19,4.54552847]
[1765856493952,0.2,126.2,126.19,13.24552847]
[1765856494141,0.2,126.2,126.19,21.88008667]
[1765856495250,0.2,126.2,126.19,30.69003159]
[1765856496255,0.2,126.22,126.21,21.85703612]
[1765856496468,0.2,126.22,126.21,21.7470912]
[1765856496636,0.77,126.22,126.21,8.7]
[1765856497276,0.2,126.22,126.21,8.7]
[1765856497478,0.77,126.22,126.21,8.7]
[1765856504754,0.2,126.22,126.21,16.62330243]
[1765856505258,0.2,126.22,126.21,17.33330243]
[1765856506670,0.2,126.22,126.21,16.62330243]
[1765856507054,0.2,126.22,126.21,8.7]
[1765856508374,0.2,126.22,126.21,16.62330243]
[1765856508677,0.2,126.22,126.21,20.23042606]
[1765856510159,0.2,126.22,126.21,16.62330243]
[1765856510387,0.77,126.22,126.21,16.62330243]
[1765856510570,0.2,126.22,126.21,16.62330243]
[1765856511870,0.77,126.22,126.21,8.7]
[1765856512877,8.69267469,126.22,126.21,8.7]
[1765856513055,0.77,126.22,126.21,8.7]